bitfinex/quotes_ETHUSD_20250220
["timestamp","ask_amount","ask_price","bid_price","bid_amount"]
[1740068456169,5.23,2728.6,2728.3,0.73217174]
[1740068456378,5.23,2728.6,2728.3,4.39737174]
[1740068456670,5.23,2728.6,2728.3,4.39739174]
[1740068456977,5.23,2728.6,2728.3,0.73217174]
[1740068457478,5.23,2728.6,2728.3,4.39734174]
[1740068457776,8.89489,2728.6,2728.3,0.73217174]
[1740068457963,3.66509,2728.5,2728.3,0.73217174]
[1740068458350,8.89489,2728.6,2728.3,0.73217174]
[1740068458552,5.23,2728.5,2728.3,0.73217174]
[1740068459066,3.66528,2728.4,2727.9,0.7535]
[1740068459246,3.66554,2728.2,2727.6,4.71165]
[1740068459450,5.23,2728.1,2727.7,3.66605]
[1740068459758,8.89557,2728.1,2727.6,8.08578]
[1740068460263,5.23,2728.1,2727.7,3.66601]
[1740068460468,5.23,2728.1,2727.8,3.66587]
[1740068460664,5.23,2728.1,2728.0,3.66568]
[1740068461345,5.23,2728.1,2728.0,5.203629]
[1740068461548,5.23,2728.1,2728.0,8.91934322]
[1740068462145,3.11685598,2729.4,2728.8,3.66453]
[1740068462344,3.664,2729.3,2728.6,4.43148]
[1740068462544,3.92115598,2729.4,2728.8,3.66457]
[1740068462844,6.78077598,2729.4,2728.9,3.66435]
[1740068463083,4.458,2729.6,2729.1,0.786]
[1740068463640,0.7944,2729.6,2729.1,0.786]
[1740068463935,3.66374,2729.5,2729.1,0.786]
[1740068464485,7.05845893,2729.8,2729.1,0.786]
[1740068464702,0.7944,2729.9,2729.4,3.66367]
[1740068465011,3.11685598,2730.1,2729.2,3.66395]
[1740068465012,3.0,2730.1,2729.2,3.66395]
[1740068465177,7.3267,2729.8,2729.2,3.66395]
[1740068465383,3.66347,2729.7,2729.1,4.45018]
[1740068466420,3.66335,2729.8,2729.1,0.786]
[1740068466621,0.76763264,2730.0,2729.1,0.786]
[1740068466790,3.66328,2729.8,2729.2,7.32806]
[1740068466991,3.66328,2729.8,2729.3,3.66387]
[1740068467516,7.32621,2730.0,2729.5,0.7212655]
[1740068467720,3.66335,2729.8,2729.5,0.7212655]
[1740068467924,3.66308,2730.0,2729.5,0.7212655]
[1740068468222,0.27366697,2730.0,2729.5,4.3848155]
[1740068468425,3.93679697,2730.0,2729.5,0.7212655]
[1740068468605,4.67632644,2730.2,2729.5,0.7212655]
[1740068468807,3.66323,2729.9,2729.5,0.7212655]
[1740068469117,3.66327,2729.8,2729.5,0.7212655]
[1740068469342,3.66308,2730.0,2729.5,4.3848555]
[1740068469492,3.66308,2730.0,2729.6,0.7944]
[1740068469695,3.66295,2730.1,2729.6,0.7944]
[1740068469984,3.66286,2730.1,2729.6,0.7944]
[1740068470205,4.67632644,2730.2,2729.6,0.7944]
[1740068470397,3.66335,2729.8,2729.6,0.7944]
[1740068470609,3.66335,2729.8,2729.5,0.7212655]
[1740068470804,3.66305,2730.0,2729.5,4.3849355]
[1740068471022,3.66325,2729.9,2729.5,0.7212655]
[1740068471226,3.66327,2729.8,2729.5,0.7212655]
[1740068471786,3.6632,2729.9,2729.5,0.7212655]
[1740068471987,3.66329,2729.8,2729.5,0.7212655]
[1740068472413,3.66314,2729.9,2729.5,0.7212655]
[1740068472723,3.66292,2730.1,2729.5,4.3849055]
[1740068472886,3.66308,2730.0,2729.5,4.3849055]
[1740068473088,3.66308,2730.0,2729.5,4.3848555]
[1740068473538,3.66315,2729.9,2729.5,0.7212655]
[1740068473995,3.66332,2729.8,2729.5,0.7212655]
[1740068474200,3.66348,2729.7,2729.5,0.7212655]
[1740068474406,3.664,2729.3,2729.1,0.7816]
[1740068474601,3.66382,2729.4,2728.8,9.0156]
[1740068474801,3.66401,2729.3,2728.8,12.68013]
[1740068475136,3.66442,2729.0,2728.8,8.234]
[1740068475331,3.66448,2728.9,2728.8,8.234]
[1740068475523,3.66442,2729.0,2728.8,8.234]
[1740068476334,3.66448,2728.9,2728.8,8.234]
[1740068477294,0.7552,2729.1,2728.8,8.234]
[1740068477526,3.66435,2729.0,2728.8,8.234]
[1740068478532,3.66448,2728.9,2728.8,8.234]
[1740068479330,3.66416,2729.2,2728.8,8.234]
[1740068479524,3.66395,2729.3,2728.8,9.0309]
[1740068479910,6.66372,2729.5,2729.0,3.66431]
[1740068480102,3.66395,2729.3,2728.8,12.69549]
[1740068480436,3.66409,2729.2,2728.8,9.0309]
[1740068480638,3.66416,2729.2,2728.8,9.0309]
[1740068481134,3.66445,2729.0,2728.6,0.73333161]
[1740068481498,3.66456,2728.9,2728.6,0.73333161]
[1740068481919,3.66464,2728.8,2728.6,0.73333161]
[1740068482113,4.44784,2729.1,2728.6,0.73333161]
[1740068482415,3.66461,2728.8,2728.6,0.73333161]
[1740068482856,3.66472,2728.8,2728.6,0.73333161]
[1740068483251,3.66442,2729.0,2728.6,0.73333161]
[1740068484733,7.32888,2729.0,2728.6,0.73333161]
[1740068485059,3.66454,2728.9,2728.6,0.73333161]
[1740068485262,3.6644,2729.0,2728.6,0.73333161]
[1740068485581,0.7836,2729.1,2728.7,3.66461]
[1740068485739,3.90152644,2729.3,2728.7,3.66461]
[1740068485740,3.66403,2729.3,2728.7,3.66461]
[1740068485927,3.66407,2729.2,2728.7,7.32927]
[1740068486133,3.66407,2729.2,2728.7,7.32928]
[1740068486328,3.66403,2729.3,2728.7,3.66461]
[1740068486532,3.66402,2729.3,2728.7,4.18471416]
[1740068486743,3.66402,2729.3,2728.8,3.6646]
[1740068486944,0.2720548,2729.5,2728.7,4.18478416]
[1740068487131,3.38798805,2729.8,2729.2,0.8128]
[1740068487332,3.66368,2729.5,2729.2,0.8128]
[1740068487539,7.32718,2729.6,2729.2,0.8128]
[1740068487841,3.66354,2729.6,2729.2,0.8128]
[1740068488233,3.66367,2729.5,2729.2,0.8128]
[1740068488433,3.66376,2729.5,2729.2,1.55405443]
[1740068488635,3.66387,2729.4,2729.2,1.55405443]
[1740068488861,3.66376,2729.5,2729.2,1.55405443]
[1740068489053,3.6638,2729.4,2729.2,1.55405443]
[1740068489241,3.66376,2729.5,2729.2,1.55405443]
[1740068489466,7.32692,2729.7,2729.2,1.55405443]
[1740068489670,3.66377,2729.5,2729.2,1.55405443]
[1740068490777,3.66354,2729.6,2729.2,1.55405443]
[1740068491145,3.66381,2729.4,2729.2,1.55405443]
[1740068491745,3.66368,2729.5,2729.2,1.55405443]
[1740068491945,3.66361,2729.6,2729.2,1.55405443]
[1740068492164,4.73501081,2729.7,2729.2,1.55405443]
[1740068492360,0.81229989,2729.6,2729.2,1.55405443]
[1740068492565,3.66388,2729.4,2729.2,1.55405443]
[1740068492777,3.66394,2729.3,2729.2,1.55405443]
[1740068492976,3.66381,2729.4,2729.2,1.55405443]
[1740068493555,3.66374,2729.5,2729.2,1.55405443]
[1740068493773,3.66387,2729.4,2729.2,1.55405443]
[1740068494548,3.66363,2729.6,2729.2,1.55405443]
[1740068495486,3.6638,2729.5,2729.2,1.55405443]
[1740068495672,3.66374,2729.5,2729.2,1.55405443]
[1740068496374,3.66377,2729.5,2729.2,1.55405443]
[1740068497683,3.66375,2729.5,2729.2,1.55405443]
[1740068498362,3.38798805,2729.8,2729.3,3.66385]
[1740068498561,3.66346,2729.7,2729.2,5.21807443]
[1740068498885,7.32699,2729.7,2729.2,5.21811443]
[1740068499176,3.66356,2729.6,2729.2,5.21811443]
[1740068499366,3.6634,2729.7,2729.2,1.55405443]
[1740068499568,3.66368,2729.5,2729.2,1.55405443]
[1740068499774,3.66355,2729.6,2729.2,1.55405443]
[1740068500082,3.6634,2729.7,2729.2,1.55405443]
[1740068500251,3.6634,2729.7,2729.2,5.21810443]
[1740068500451,3.7568,2730.0,2729.2,5.73991487]
[1740068500452,3.66324,2729.9,2729.2,5.73991487]
[1740068500654,3.66329,2729.8,2729.2,5.73991487]
[1740068500973,3.66329,2729.8,2729.3,3.66393]
[1740068501169,3.11461334,2730.1,2729.3,3.66382]
[1740068501369,7.32676,2729.8,2729.3,3.66382]
[1740068501886,3.66341,2729.7,2729.3,3.66382]
[1740068502693,3.66344,2729.7,2729.3,3.66382]
[1740068502874,3.66333,2729.8,2729.2,5.21810443]
[1740068503085,3.66342,2729.7,2729.2,5.21810443]
[1740068503990,3.66364,2729.6,2729.2,1.55405443]
[1740068504156,7.32725,2729.6,2729.2,1.55405443]
[1740068504349,3.66361,2729.6,2729.2,1.55405443]
[1740068504865,0.67782233,2729.6,2729.2,1.55405443]
[1740068505062,3.66394,2729.3,2729.2,0.74125443]
[1740068505384,7.32775,2729.4,2728.9,4.48103]
[1740068505570,3.66383,2729.4,2728.9,4.48103]
[1740068506096,3.66383,2729.4,2729.1,0.74897381]
[1740068506255,3.66363,2729.6,2729.1,0.74897381]
[1740068506586,3.66382,2729.4,2729.1,0.74897381]
[1740068507191,3.66361,2729.6,2729.1,0.74897381]
[1740068507391,3.11461334,2729.7,2729.1,0.74897381]
[1740068507588,3.11461334,2729.7,2729.2,3.66399]
[1740068507589,10.44160334,2729.7,2729.2,3.66399]
[1740068507788,3.66354,2729.6,2729.1,4.41305381]
[1740068507990,3.92111334,2730.0,2729.4,3.66376]
[1740068508157,3.66341,2729.7,2729.5,0.7946]
[1740068509188,3.66354,2729.6,2729.2,0.7672]
[1740068509588,3.66354,2729.6,2729.2,4.43127]
[1740068510066,7.32671,2729.8,2729.3,3.66392]
[1740068510271,3.66335,2729.8,2729.3,3.66392]
[1740068510569,3.66335,2729.8,2729.2,0.7672]
[1740068510769,3.66335,2729.8,2729.2,4.43127]
[1740068511090,3.6634,2729.7,2729.2,4.94923438]
[1740068511389,3.66357,2729.6,2729.2,4.94923438]
[1740068512293,3.66357,2729.6,2729.2,1.28522438]
[1740068512595,3.66357,2729.6,2729.2,4.94929438]
[1740068512792,3.6634,2729.7,2729.2,4.94921438]
[1740068513312,7.58412334,2730.0,2729.5,3.66359]
[1740068513513,3.66327,2729.9,2729.4,3.66371]
[1740068513667,3.66333,2729.8,2729.4,3.66371]
[1740068514602,3.66327,2729.9,2729.4,3.66371]
[1740068514603,7.58413334,2730.0,2729.5,3.66357]
[1740068514762,6.77763334,2730.0,2729.4,3.66371]
[1740068514962,3.66321,2729.9,2729.4,7.82748288]
[1740068515171,10.44074334,2730.0,2729.5,3.66358]
[1740068515500,3.66321,2729.9,2729.4,4.16377288]
[1740068515672,3.66328,2729.8,2729.4,0.50007288]
[1740068515878,3.66328,2729.8,2729.4,4.16380288]
[1740068516391,3.66294,2730.1,2729.7,0.8313]
[1740068516599,3.6632,2729.9,2729.7,0.8313]
[1740068516799,3.6634,2729.7,2729.6,0.73111416]
[1740068517504,7.32662,2729.8,2729.6,0.73111416]
[1740068517714,3.66381,2729.4,2729.1,0.83]
[1740068517869,7.3277,2729.4,2729.1,0.83]
[1740068518068,7.32772,2729.4,2729.2,0.73287482]
[1740068518312,3.91371334,2729.6,2728.9,1.121]
[1740068518511,3.66414,2729.2,2728.8,0.74249581]
[1740068518698,3.66436,2729.0,2728.8,0.74249581]
[1740068519085,3.66414,2729.2,2728.8,0.74249581]
[1740068519506,3.66429,2729.1,2728.8,0.74249581]
[1740068520119,6.77865334,2729.3,2728.8,0.74249581]
[1740068520319,3.66402,2729.3,2728.8,0.74249581]
[1740068520591,3.66416,2729.2,2728.8,0.74249581]
[1740068520933,3.6641,2729.2,2728.8,0.74249581]
[1740068521143,3.66387,2729.4,2728.9,3.66442]
[1740068521341,3.66387,2729.4,2728.8,0.74249581]
[1740068521342,3.9455819,2729.5,2728.8,0.74249581]
[1740068521641,3.6639,2729.4,2728.9,3.66447]
[1740068521940,0.2817919,2729.5,2728.8,0.74249581]
[1740068522142,0.70134242,2729.5,2728.8,4.40710581]
[1740068522344,7.32807,2729.3,2728.8,4.40710581]
[1740068522550,3.66401,2729.3,2728.8,4.40702581]
[1740068522993,3.66389,2729.4,2728.9,3.66447]
[1740068523244,3.66389,2729.4,2728.8,4.40697581]
[1740068523439,4.36511242,2729.5,2728.8,0.74249581]
[1740068523647,0.7991,2729.6,2729.1,3.66412]
[1740068523845,3.66374,2729.5,2729.0,3.66434]
[1740068524073,8.89382,2729.4,2728.9,4.45656]
[1740068524392,5.23,2729.4,2729.1,3.66416]
[1740068524549,5.23,2729.4,2728.9,4.45656]
[1740068524752,5.23,2729.4,2729.0,4.18411558]
[1740068524995,5.23,2729.4,2729.1,3.66413]
[1740068525464,5.23,2729.4,2729.0,4.18421558]
[1740068525853,5.23,2729.4,2729.1,3.66421]
[1740068526165,5.23,2729.4,2729.3,3.66394]
[1740068526363,5.23,2729.4,2729.3,4.783234]
[1740068526562,5.23,2729.4,2729.3,1.119294]
[1740068528163,5.23,2729.4,2729.3,0.7529]
[1740068529182,5.23,2729.4,2729.0,4.42385]
[1740068529392,8.89381,2729.4,2729.3,0.74196909]
[1740068529696,3.66412,2729.2,2728.8,0.7692]
[1740068529907,3.66412,2729.2,2728.6,8.232]
[1740068529908,8.8943,2729.1,2728.6,8.232]
[1740068530190,3.66449,2728.9,2728.6,8.232]
[1740068530360,3.66468,2728.8,2728.6,8.97492296]
[1740068530684,5.23,2728.7,2728.6,8.97492296]
[1740068531060,5.23,2728.7,2728.6,8.232]
[1740068532284,8.89474,2728.7,2728.6,8.232]
[1740068532477,5.23,2728.7,2728.6,8.232]
[1740068533485,8.89474,2728.7,2728.6,8.232]
[1740068533860,5.23,2728.7,2728.6,8.232]
[1740068534691,8.89474,2728.7,2728.6,8.232]
[1740068535566,5.23,2728.7,2728.6,8.232]
[1740068535771,8.89474,2728.7,2728.6,8.232]
[1740068537567,5.23,2728.7,2728.6,8.232]
[1740068538141,8.89474,2728.7,2728.6,8.232]
[1740068538459,10.150677,2728.7,2728.6,8.232]
[1740068538793,3.66534,2728.3,2727.8,3.66588]
[1740068538997,5.23,2728.2,2727.8,7.33177]
[1740068539183,3.66556,2728.1,2728.0,0.74310835]
[1740068539389,3.66589,2727.9,2727.6,0.291]
[1740068539692,3.66575,2728.0,2727.6,0.291]
[1740068539890,3.66582,2727.9,2727.6,0.291]
[1740068540112,3.66582,2727.9,2727.4,3.66642]
[1740068540113,3.66582,2727.9,2727.7,0.74230102]
[1740068540319,3.66595,2727.8,2727.7,0.74230102]
[1740068540602,5.23,2727.8,2727.7,4.40839102]
[1740068540890,5.23,2727.8,2727.7,0.74230102]
[1740068543312,5.23,2727.8,2727.7,4.40839102]
[1740068543689,5.23,2727.8,2727.7,0.74230102]
[1740068543888,5.23,2727.8,2727.7,4.40839102]
[1740068544099,5.23,2727.8,2727.7,5.21586412]
[1740068544297,5.23,2727.8,2727.7,6.02026412]
[1740068544910,5.23,2728.4,2728.0,3.66567]
[1740068545303,5.23,2728.4,2728.0,7.33126]
[1740068545504,5.23,2728.4,2728.0,3.66559]
[1740068545812,6.195055,2728.4,2727.7,1.54670102]
[1740068546014,4.49665,2728.1,2727.7,1.54670102]
[1740068546511,4.49665,2728.1,2727.7,0.74230102]
[1740068546913,0.8311,2728.1,2727.7,0.74230102]
[1740068547908,0.8311,2728.1,2727.7,4.40835102]
[1740068548309,0.8311,2728.1,2727.7,0.74230102]
[1740068548676,0.8311,2728.1,2727.7,4.40836102]
[1740068548882,3.66538,2728.3,2727.8,3.66586]
[1740068549077,3.66555,2728.1,2727.7,0.74230102]
[1740068549292,3.66545,2728.2,2727.7,4.40831102]
[1740068549502,5.41219883,2728.3,2727.7,0.74230102]
[1740068549693,3.66554,2728.2,2727.7,0.74230102]
[1740068550018,3.6656,2728.1,2727.7,0.74230102]
[1740068550179,3.66554,2728.2,2727.7,0.74230102]
[1740068550378,3.66556,2728.1,2727.7,0.74230102]
[1740068550704,5.23,2728.0,2727.7,0.74230102]
[1740068551217,8.8957,2728.0,2727.7,0.74230102]
[1740068551383,5.23,2728.0,2727.7,0.74230102]
[1740068552612,5.23,2728.0,2727.9,3.66582]
[1740068552789,5.23,2728.0,2727.9,4.8616321]
[1740068553389,5.23,2728.0,2727.9,1.1958121]
[1740068553609,5.23,2728.0,2727.7,0.74230102]
[1740068554501,8.89569,2728.0,2727.7,0.74230102]
[1740068554894,5.23,2728.0,2727.7,0.74230102]
[1740068556713,8.89556,2728.1,2727.7,0.74230102]
[1740068557636,3.66574,2728.0,2727.7,0.74230102]
[1740068558437,3.66591,2727.9,2727.7,0.74230102]
[1740068558938,3.66595,2727.8,2727.3,0.8291]
[1740068559237,3.66595,2727.8,2727.3,4.78671]
[1740068559937,3.66595,2727.8,2727.6,0.74221975]
[1740068560314,3.66609,2727.7,2727.6,0.74221975]
[1740068560562,8.89609,2727.7,2727.6,0.74221975]
[1740068561004,9.71429,2727.7,2727.6,0.74221975]
[1740068561203,13.38045,2727.7,2727.2,11.89974]
[1740068561500,9.71429,2727.7,2727.2,11.89974]
[1740068561695,8.89634,2727.6,2727.3,0.72467544]
[1740068561961,3.66648,2727.5,2727.3,0.72467544]
[1740068562135,8.89625,2727.6,2727.3,0.72467544]
[1740068562300,3.66649,2727.4,2727.3,0.72467544]
[1740068562914,3.66649,2727.4,2726.9,1.0545]
[1740068563114,8.89672,2727.3,2727.1,0.73612696]
[1740068563316,10.153038,2727.3,2727.1,0.73612696]
[1740068563554,8.89676,2727.2,2727.1,0.73612696]
[1740068565649,5.23,2727.2,2727.1,0.73612696]
[1740068565967,5.23,2727.2,2727.1,1.54192696]
[1740068566331,5.23,2727.2,2727.1,5.20881696]
[1740068566550,5.23,2727.2,2727.1,6.09639466]
[1740068566850,5.23,2727.2,2727.1,5.20881696]
[1740068567412,5.23,2727.2,2727.1,1.54192696]
[1740068567854,5.23,2727.2,2727.1,5.20881696]
[1740068568056,5.23,2727.2,2727.1,1.54192696]
[1740068568223,5.23,2727.2,2727.1,5.20881696]
[1740068568641,5.23,2727.5,2727.1,1.54192696]
[1740068568959,7.33307,2727.4,2727.1,1.54192696]
[1740068569163,6.92473,2727.5,2727.1,0.73612696]
[1740068569164,3.66672,2727.3,2727.1,0.73612696]
[1740068569316,3.66676,2727.2,2727.1,0.73612696]
[1740068571272,3.66672,2727.3,2727.1,0.73612696]
[1740068571634,3.66658,2727.4,2727.1,0.73612696]
[1740068571830,3.66662,2727.4,2727.1,0.73612696]
[1740068572062,3.66665,2727.3,2727.1,0.73612696]
[1740068572536,3.66676,2727.2,2727.1,0.73612696]
[1740068573071,3.66676,2727.2,2726.7,9.0589]
[1740068573072,3.66692,2727.1,2726.7,9.0589]
[1740068573885,3.66665,2727.3,2727.0,0.71699983]
[1740068574380,3.66678,2727.2,2727.0,0.71699983]
[1740068574585,5.23,2727.1,2727.0,0.71699983]
[1740068575204,5.23,2727.1,2727.0,4.38402983]
[1740068576044,5.23,2727.1,2727.0,5.94935181]
[1740068577062,5.218,2727.1,2727.0,5.94935181]
[1740068577258,5.218,2727.1,2727.0,5.14422983]
[1740068584293,5.218,2727.1,2727.0,0.71699983]
[1740068584294,8.88489,2727.1,2727.0,0.71699983]
[1740068584514,4.42968,2726.9,2726.7,8.236]
[1740068585010,3.6673,2726.8,2726.7,8.236]
[1740068585292,5.218,2726.8,2726.7,8.236]
[1740068585592,5.218,2726.8,2726.7,4.39401122]
[1740068586090,5.218,2726.8,2726.7,0.72658122]
[1740068586390,0.8156,2726.7,2726.3,0.291]
[1740068586773,3.66758,2726.6,2726.3,0.291]
[1740068587368,8.8857,2726.5,2726.0,4.46169]
[1740068587575,5.218,2726.5,2725.9,8.529]
[1740068587911,3.66784,2726.4,2725.9,8.238]
[1740068588245,3.66784,2726.4,2725.9,11.90644]
[1740068588420,3.66784,2726.4,2725.9,8.238]
[1740068588568,3.66797,2726.3,2725.9,8.238]
[1740068588769,8.88577,2726.5,2725.9,11.90647]
[1740068589005,0.7582,2726.4,2725.9,8.238]
[1740068589168,0.7582,2726.4,2725.9,11.90648]
[1740068589966,3.66797,2726.3,2726.2,0.71659587]
[1740068590193,4.42604,2726.4,2726.2,0.71659587]
[1740068590404,3.66797,2726.3,2726.2,0.71659587]
[1740068590896,4.42604,2726.4,2726.2,0.71659587]
[1740068591091,1.89693968,2726.4,2726.2,0.71659587]
[1740068591469,0.7582,2726.4,2726.2,0.71659587]
[1740068591665,4.42604,2726.4,2726.2,0.71659587]
[1740068592066,0.7582,2726.4,2726.2,0.71659587]
[1740068592397,5.218,2726.3,2726.2,0.71659587]
[1740068592769,5.218,2726.3,2726.2,4.38469587]
[1740068592964,5.218,2726.3,2726.2,5.26831846]
[1740068593203,5.218,2726.3,2726.2,9.05161846]
[1740068593383,0.7562,2727.2,2726.3,3.0]
[1740068593384,3.87081334,2727.2,2726.3,3.0]
[1740068593583,3.66691,2727.1,2726.5,3.6676]
[1740068593769,3.66691,2727.1,2726.6,0.291]
[1740068593968,7.53765334,2727.2,2726.6,3.9585]
[1740068594539,7.53765334,2727.2,2726.6,3.95849]
[1740068594673,0.7562,2727.2,2726.8,3.66723]
[1740068595018,0.7562,2727.2,2726.7,0.8236]
[1740068595168,3.90621334,2727.5,2727.0,3.66703]
[1740068595372,7.57264334,2727.5,2726.9,3.66715]
[1740068595573,3.90621334,2727.5,2726.9,3.66715]
[1740068595985,3.90621334,2727.5,2727.0,3.66693]
[1740068596370,3.90621334,2727.5,2727.2,0.74975116]
[1740068596799,7.57264334,2727.5,2726.9,7.33424]
[1740068597000,7.57264334,2727.5,2726.9,4.482874]
[1740068597327,0.7916,2727.5,2727.1,4.4059937]
[1740068597479,4.45798,2727.5,2727.1,0.7391737]
[1740068598009,4.45796,2727.5,2727.1,0.7391737]
[1740068598449,0.8208,2727.8,2727.3,3.66655]
[1740068598634,1.10293312,2728.0,2727.4,4.324105]
[1740068598835,0.8208,2728.0,2727.6,3.66618]
[1740068599048,0.8208,2728.0,2727.4,0.657655]
[1740068599352,3.11461334,2728.9,2727.6,3.7875]
[1740068599531,3.66516,2728.4,2727.8,3.66588]
[1740068599730,0.8229,2728.2,2727.7,7.33209]
[1740068600045,3.11461334,2728.6,2728.0,3.66555]
[1740068600046,0.8229,2728.5,2728.0,3.66555]
[1740068600256,3.66516,2728.4,2727.8,3.66585]
[1740068600541,3.66529,2728.3,2727.8,3.66585]
[1740068600928,3.66542,2728.2,2727.9,0.291]
[1740068601129,3.66555,2728.1,2727.9,0.291]
[1740068601319,0.7905,2728.0,2727.9,0.291]
[1740068601724,4.48286,2728.2,2727.9,0.291]
[1740068603925,3.66622,2727.6,2727.5,0.74024038]
[1740068604124,3.66644,2727.5,2727.1,8.529]
[1740068604336,3.66622,2727.6,2727.1,8.529]
[1740068604548,3.66622,2727.6,2727.3,0.7328521]
[1740068604726,0.38319636,2727.6,2727.3,0.7328521]
[1740068604934,4.49906,2727.2,2727.1,8.238]
[1740068605127,0.8323,2727.2,2727.1,8.238]
[1740068605314,4.49906,2727.2,2727.1,8.238]
[1740068606758,0.8323,2727.2,2727.1,8.238]
[1740068607664,6.78102334,2727.5,2727.1,8.238]
[1740068607665,4.4165,2727.5,2727.1,8.238]
[1740068608068,0.7501,2727.5,2727.1,3.66683]
[1740068608265,4.41614,2727.8,2727.2,3.66668]
[1740068608468,0.7501,2727.8,2727.4,3.66636]
[1740068608671,0.27214977,2728.2,2727.0,0.7997]
[1740068608971,3.66563,2728.1,2727.5,3.66628]
[1740068609170,3.66573,2728.0,2727.4,4.46612]
[1740068609343,3.66568,2728.0,2727.5,0.291]
[1740068609539,6.78016334,2728.1,2727.5,0.291]
[1740068609980,3.66578,2728.0,2727.5,0.291]
[1740068610189,4.73749931,2728.0,2727.5,3.95735]
[1740068610391,4.73749931,2728.0,2727.5,0.291]
[1740068610392,3.66569,2728.0,2727.5,0.291]
[1740068610555,3.66569,2728.0,2727.5,1.01626762]
[1740068611369,6.78016334,2728.1,2727.5,1.01626762]
[1740068611536,3.66585,2727.9,2727.5,1.01626762]
[1740068611971,6.78016334,2728.1,2727.5,1.01626762]
[1740068612149,3.66572,2728.0,2727.5,1.01626762]
[1740068612349,3.66572,2728.0,2727.5,4.68259762]
[1740068613469,0.27214977,2728.2,2727.5,1.01626762]
[1740068613812,0.7722,2727.8,2727.5,0.72526762]
[1740068614167,1.3222,2728.0,2727.5,4.39158762]
[1740068614398,4.98797,2728.0,2727.5,0.72526762]
[1740068614671,1.3222,2728.0,2727.5,0.72526762]
[1740068614866,0.27214977,2728.2,2727.6,0.8195]
[1740068615103,0.27214977,2728.2,2727.8,3.66587]
[1740068615275,0.27214977,2728.2,2727.7,3.66609]
[1740068615477,3.66543,2728.2,2727.7,3.66609]
[1740068615773,3.66557,2728.1,2727.7,3.66608]
[1740068615974,4.45919,2728.3,2727.8,3.66587]
[1740068616193,0.7691,2728.6,2727.6,4.48566]
[1740068616368,3.66508,2728.5,2728.0,3.66568]
[1740068616568,7.33019,2728.5,2728.0,3.66568]
[1740068616768,3.66508,2728.5,2728.0,3.66568]
[1740068616986,4.43402,2728.6,2728.1,3.66553]
[1740068617187,3.66441,2729.0,2728.3,3.6652]
[1740068617188,3.66461,2728.8,2728.3,3.6652]
[1740068617391,3.66461,2728.8,2728.3,7.33039]
[1740068617592,0.8249,2728.9,2728.4,3.66514]
[1740068617774,3.76297,2730.1,2728.3,0.838739]
[1740068617775,0.8249,2729.2,2728.7,0.7698]
[1740068617976,4.48903,2729.2,2728.7,0.7698]
[1740068618928,7.60329334,2729.5,2728.9,3.66443]
[1740068619086,0.8249,2729.5,2728.9,3.66443]
[1740068619409,7.32774,2729.4,2728.9,4.44307913]
[1740068619612,0.8249,2729.5,2728.9,0.77864913]
[1740068619816,0.8249,2729.5,2729.1,3.66412]
[1740068620011,3.93401522,2729.7,2729.1,3.66412]
[1740068620212,3.66359,2729.6,2729.1,3.66412]
[1740068620413,3.66374,2729.5,2728.9,3.66443]
[1740068620636,3.66374,2729.5,2728.8,3.6646]
[1740068620908,3.66385,2729.4,2728.9,1.100906]
[1740068621617,3.66385,2729.4,2729.1,0.7278518]
[1740068621785,3.66426,2729.1,2728.9,0.291]
[1740068621985,3.66434,2729.0,2728.9,0.291]
[1740068622512,3.66422,2729.1,2728.9,0.291]
[1740068622935,3.66422,2729.1,2728.9,1.02993323]
[1740068623582,0.55,2729.3,2728.9,1.02993323]
[1740068623778,3.66409,2729.2,2728.9,1.02993323]
[1740068624035,3.66424,2729.1,2728.9,1.02993323]
[1740068624217,7.32825,2729.2,2728.9,1.02993323]
[1740068624521,3.66421,2729.1,2728.9,1.02993323]
[1740068624825,4.21405,2729.3,2728.9,1.02993323]
[1740068624985,3.66417,2729.2,2728.9,1.02993323]
[1740068625490,3.66422,2729.1,2728.9,1.02993323]
[1740068627337,3.66407,2729.2,2728.9,1.02993323]
[1740068627685,3.66423,2729.1,2728.9,1.02993323]
[1740068627915,3.66434,2729.0,2728.9,1.02993323]
[1740068628303,3.66423,2729.1,2728.9,1.02993323]
[1740068628503,7.32854,2729.1,2728.9,1.02993323]
[1740068629145,3.66434,2729.0,2728.9,1.02993323]
[1740068630307,3.66422,2729.1,2728.9,1.02993323]
[1740068630536,3.66434,2729.0,2728.9,1.02993323]
[1740068631541,3.66469,2728.8,2728.5,0.29]
[1740068631686,0.7908,2729.2,2728.5,0.29]
[1740068631892,3.66395,2729.3,2728.8,0.8297]
[1740068632349,3.66395,2729.3,2728.8,4.49424]
[1740068633153,4.43348,2729.4,2728.8,4.49424]
[1740068633366,4.43348,2729.4,2728.9,3.66447]
[1740068633662,5.02423,2729.6,2728.9,3.66436]
[1740068633842,3.66368,2729.5,2729.0,3.66426]
[1740068634336,3.66367,2729.5,2729.0,3.66426]
[1740068635051,3.66396,2729.3,2728.9,0.52145434]
[1740068635276,1.3606,2729.6,2728.8,4.49424]
[1740068635402,3.66376,2729.5,2728.8,4.49431]
[1740068635602,4.47415,2729.6,2729.0,3.66429]
[1740068635831,4.47415,2729.6,2729.1,3.66417]
[1740068636037,0.8106,2729.6,2729.2,3.66399]
[1740068636247,0.27060522,2729.7,2729.3,3.66387]
[1740068636450,3.66349,2729.7,2729.3,0.7829]
[1740068636734,0.7628,2729.9,2729.4,0.74425737]
[1740068636941,3.66328,2729.8,2729.4,0.74425737]
[1740068637436,3.66343,2729.7,2729.4,0.74425737]
[1740068637600,0.7628,2729.9,2729.4,0.74425737]
[1740068637803,3.66351,2729.7,2729.4,0.74425737]